[Event "FIDE World School-ch O-15 2025"]
[Site "Vrnjacka Banja"]
[Date "2025.03.22"]
[Round "3.1"]
[White "Scheglov, Gleb"]
[Black "Ashikmamutov, Saidkhon"]
[Result "1-0"]
[Annotator "TA"]
[ECO "E09"]
[WhiteElo "2306"]
[BlackElo "1978"]
[PlyCount "75"]
[EventDate "2025.03.19"]
[EventType "swiss"]
[EventCountry "SRB"]
[SourceTitle "playchess.com"]
[Source "ChessBase"]
[SourceQuality "1"]
[TimeControl "5400+30"]

{[%evp 20,75,35,25,14,16,14,3,126,131,122,122,135,125,126,122,155,109,248,244,288,278,311,226,197,194,265,231,321,311,320,298,295,294,283,258,262,278,435,431,691,676,689,685,682,675,835,827,845,835,842,833,29971,29973,29963,29967,29982,29978]} 1. Nf3 {[%emt 0:03:25]} d5 {[%emt 0:00:14]} 2. g3 {[%emt 0:01:04]} Nf6 {[%emt 0:00:06]} 3. Bg2 {[%emt 0:00:06]} c6 {[%emt 0:00:08]} 4. O-O {[%emt 0:00:05]} e6 {[%emt 0:00:08]} 5. d4 {[%emt 0:00:06]} Nbd7 {[%emt 0:01:12]} 6. Nbd2 {[%emt 0:08:22]} Be7 {[%emt 0:00:17]} 7. c4 {[%emt 0:00:41]} O-O {[%emt 0:06:18]} 8. Qc2 {[%emt 0:02:00]} b6 {[%emt 0:04:33][%cal Bb7b6,Bb6b5][%mdl 32]} 9. b3 {[%emt 0:01:01][%cal Bb2b3,Bb3b4][%mdl 32]} Ba6 {[%emt 0:01:44]} 10. Bb2 {[%emt 0:00:36]} Rc8 {[%emt 0:00:23]} 11. Rac1 {[%emt 0:10:53]} c5 {[%emt 0:01:50] E09: Closed Catalan: Main Line: 7 Qc2 c6 8 Nbd2.} 12. Qb1 {[%emt 0:00:48]} b5 {[%emt 0:17:19]} 13. dxc5 {[%emt 0:04:06]} Bxc5 $146 {[%emt 0:09:33] [#]} (13... bxc4 $11 {remains equal.} 14. b4 Bb7) (13... Nxc5 14. b4 Na4 15. c5 Nxb2 16. Qxb2 Bb7 17. Nd4 Qd7 18. N2f3 a6 19. c6 Qc7 20. cxb7 Qxb7 {1-0 Chung,M (2001)-Bartels,K (1643) FRA-ch U16 Girls 2015 (3)}) 14. b4 $1 $16 {[%emt 0:07:14][%mdl 512]} Be7 {[%emt 0:08:34]} 15. c5 {[%emt 0:00:24]} Nb8 {[%emt 0:00:01]} 16. Ne5 {[%emt 0:09:57]} Bb7 {[%emt 0:03:19]} 17. Nb3 {[%emt 0:04:47]} Ne8 {[%emt 0:08:49]} 18. e4 {[%emt 0:07:08] White is much more active.} ({White should try} 18. Rfd1) 18... f6 {[%emt 0:04:39]} (18... dxe4 $16 {is a better defense.} 19. Bxe4 Bxe4 20. Qxe4 Nf6) 19. Nd3 $18 {[%emt 0:00:12]} e5 {[%emt 0:00:24]} 20. Na5 {[%emt 0:10:43]} Ba8 {[%emt 0:00:16]} 21. Rcd1 {[%emt 0:04:19] and exd5 should not be overlooked} d4 {[%emt 0:01:34]} 22. f4 {[%emt 0:00:04]} Qc7 {[%emt 0:02:15] [#]} (22... Nd7 $142 23. Qc2 Kh8 (23... Nxc5 $2 24. Nxc5 Bxc5 25. bxc5 $16)) 23. a4 $1 {[%emt 0:04:19][%mdl 512]} a6 {[%emt 0:05:17][%cal Ba7a6,Ba6b5][%mdl 32]} (23... bxa4 24. Qa2+) 24. axb5 {[%emt 0:00:13]} axb5 {[%emt 0:00:07]} 25. fxe5 {[%emt 0:00:04]} fxe5 {[%emt 0:00:44]} 26. Qa2+ {[%emt 0:00:04]} Kh8 {[%emt 0:00:05]} 27. Rxf8+ {[%emt 0:00:04]} Bxf8 {[%emt 0:00:05]} 28. Qe6 {[%emt 0:00:04]} Nd7 {[%emt 0:05:21]} (28... Nf6 $142 29. Qxe5 (29. Nxe5 Re8 $18) 29... Bxe4 30. Qxc7 (30. Bxe4 Qxe5 31. Nxe5 Nxe4 $18) 30... Rxc7 31. Bxe4 (31. Bxd4 Bxg2 32. Kxg2 Nd5 $18) 31... Nxe4) 29. c6 {[%emt 0:01:10]} Ndf6 {[%emt 0:00:41]} (29... Bxc6 $142 30. Rc1 Qd6 31. Qxd6 (31. Rxc6 Rxc6 32. Qxe8 Rc2 $11) 31... Bxd6 32. Rxc6 (32. Nxc6 Nef6 $18) 32... Rb8) 30. Nxe5 {[%emt 0:03:05]} ({Not} 30. Qxe5 Qxe5 31. Nxe5 Bxb4 $18) 30... Nd6 {[%emt 0:00:20] Dodges Nf7+} 31. Bxd4 {[%emt 0:00:21]} ({Stronger than} 31. Rxd4 Re8 32. Qb3 Rxe5 $15) 31... Re8 {[%emt 0:00:43]} 32. Qh3 {[%emt 0:00:02]} Ndxe4 {[%emt 0:02:36]} 33. Bxe4 {[%emt 0:00:43]} Nxe4 {[%emt 0:00:02]} 34. Ng6+ {[%emt 0:00:06] A dynamic duo of knights.} Kg8 {[%emt 0:00:11]} 35. Nxf8 {[%emt 0:19:44]} Kxf8 {[%emt 0:01:18] Black is weak on the dark squares} 36. Qxh7 {[%emt 0:00:00] White mates.} Qf7 {[%emt 0:00:35]} 37. Rf1 {[%emt 0:00:00]} Nf6 {[%emt 0:00:01] [#]} 38. Rxf6 $1 {[%emt 0:00:00] White took control after the opening.   Weighted Error Value: White=0.08 (flawless) /Black=0.83  Mistake:       	White=1     	Black=5      Inaccurate:     	---       	Black=1      OK:         	White=9     	Black=4      Best:        	White=1     	Black=1      Brilliant:      	White=1     	---} 1-0

[Event "FIDE World School-ch O-15 2025"]
[Site "Vrnjacka Banja"]
[Date "2025.03.22"]
[Round "3.2"]
[White "Qusaiyn, Altynbek"]
[Black "Tabatadze, Erekle"]
[Result "0-1"]
[Annotator "TA"]
[ECO "B07"]
[WhiteElo "1972"]
[BlackElo "2180"]
[PlyCount "74"]
[EventDate "2025.03.19"]
[EventType "swiss"]
[EventCountry "SRB"]
[SourceTitle "playchess.com"]
[Source "ChessBase"]
[SourceQuality "1"]
[TimeControl "5400+30"]

{[%evp 11,74,44,38,16,37,14,40,41,37,28,33,25,40,-26,0,0,0,0,0,0,0,0,3,-50,-53,-111,-111,-204,-216,-202,-197,-229,-185,-230,-248,-314,-328,-326,-242,-386,-388,-421,-425,-402,-395,-667,-622,-1138,-1161,-1133,-1134,-1162,-1130,-1226,-1193,-1660,-1247,-1186,-821,-818,-804,-1804,-1645,-1429,-1337]} 1. e4 {[%emt 0:00:02]} d6 {[%emt 0:02:59]} 2. d4 {[%emt 0:00:05]} Nf6 {[%emt 0:00:14]} 3. Bd3 {[%emt 0:00:03]} e5 {[%emt 0:00:20]} 4. c3 {[%emt 0:00:04]} d5 {[%emt 0:00:55]} 5. dxe5 {[%emt 0:09:44]} Nxe4 {[%emt 0:00:35]} 6. Nf3 {[%emt 0:02:59]} Nc6 {[%emt 0:08:30]} 7. h3 {[%emt 0:14:39] B07: Pirc Defence: Miscellaneous Systems.} Be7 {[%emt 0:06:55]} (7... Bc5 8. O-O Bf5 9. b4 Bb6) 8. Be3 {[%emt 0:06:15]} Bf5 {[%emt 0:11:08]} 9. Qc2 {[%emt 0:03:30] White is slightly better.} O-O {[%emt 0:13:04]} 10. Nbd2 $146 {[%emt 0:02:45]} (10. g4 Bg6 11. h4 h5 12. g5 Qd7 13. Nbd2 Qf5 14. O-O-O Nxe5 15. Nd4 Nxd3+ 16. Qxd3 {½-½ Vasiljev,J (2036)-Kretzschmar,M (2074) Niederrhein-ch 2018 (4.6)}) 10... Nxd2 {[%emt 0:00:11]} 11. Qxd2 {[%emt 0:00:32]} Be4 {[%emt 0:05:01]} 12. Bf4 {[%emt 0:05:48]} (12. Qc2 $14) 12... Qc8 {[%emt 0:01:41]} (12... f6 {with more complications.} 13. Nd4 Bxd3 14. Qxd3 fxe5 15. Ne6 Qc8) 13. Bxe4 {[%emt 0:05:35]} dxe4 {[%emt 0:00:09]} 14. Nd4 {[%emt 0:00:02]} Nxd4 {[%emt 0:01:43]} 15. cxd4 {[%emt 0:00:48]} Rd8 {[%emt 0:07:38]} 16. O-O {[%emt 0:06:26]} Rd5 {[%emt 0:08:34]} 17. Be3 {[%emt 0:03:24]} (17. Qc2 $11) 17... c5 $1 $15 {[%emt 0:01:25]} 18. Rac1 {[%emt 0:00:46] Black converts the advantage convincingly.} ({White should play} 18. Qc3 $15) 18... Qd7 $17 {[%emt 0:00:46]} 19. Qe2 {[%emt 0:10:05]} (19. Bf4 $17) 19... cxd4 $19 {[%emt 0:00:21]} 20. Bf4 {[%emt 0:00:05]} Qf5 {[%emt 0:01:58]} 21. Qd2 {[%emt 0:06:28]} Bc5 {[%emt 0:05:15]} 22. g4 {[%emt 0:02:27]} Qg6 {[%emt 0:01:48]} 23. Rfe1 {[%emt 0:00:52]} Rad8 {[%emt 0:01:19]} 24. Rcd1 {[%emt 0:06:59]} h5 {[%emt 0:01:34]} 25. Qe2 {[%emt 0:00:09]} (25. Bg3 $142) 25... Bb4 {[%emt 0:00:46]} 26. Rf1 {[%emt 0:02:36]} d3 {[%emt 0:00:21]} 27. Qe3 {[%emt 0:00:39]} hxg4 {[%emt 0:00:24]} 28. Bg5 $2 {[%emt 0:01:00] [#]} (28. Qg3) 28... gxh3 {[%emt 0:00:59] Black is clearly winning.} 29. Kh2 {[%emt 0:00:43]} f6 {[%emt 0:01:10]} 30. Rg1 {[%emt 0:00:51]} fxg5 {[%emt 0:01:30]} 31. Rxg5 {[%emt 0:00:04]} Qf7 {[%emt 0:00:53] [#]} 32. Rdg1 {[%emt 0:00:05]} Bf8 {[%emt 0:00:14] ...d2 would now be deadly.} 33. Qxe4 {[%emt 0:00:14]} Rd4 {[%emt 0:00:40][%cal Bd5d4,Bd4f4,Bf4f2,Bf2e2][%mdl 32]} 34. Qe3 {[%emt 0:01:47]} Qf4+ {[%emt 0:00:17]} ({Not} 34... Qxa2 35. e6 $17) 35. Qxf4 {[%emt 0:00:05]} Rxf4 {[%emt 0:00:04]} 36. e6 {[%emt 0:00:03]} Rxf2+ {[%emt 0:00:19]} 37. Kxh3 {[%emt 0:00:07]} Re2 {[%emt 0:00:11] Weighted Error Value: White=0.98/Black=0.53  Mistake:       	White=6     	---        Inaccurate:     	White=1     	Black=2      OK:         	White=5     	Black=9      Best:        	---       	Black=3      Strong:       	---       	Black=1} 0-1

[Event "FIDE World School-ch O-15 2025"]
[Site "Vrnjacka Banja"]
[Date "2025.03.22"]
[Round "3.3"]
[White "Kabinazar, Nurmukhammed"]
[Black "Blagoveshchenskiy, Roman"]
[Result "1-0"]
[Annotator "NA RC"]
[ECO "C05"]
[WhiteElo "2057"]
[BlackElo "1910"]
[PlyCount "93"]
[EventDate "2025.03.19"]
[EventType "swiss"]
[EventCountry "SRB"]
[SourceTitle "playchess.com"]
[Source "ChessBase"]
[SourceQuality "1"]
[TimeControl "5400+30"]

1. e4 {[%emt 0:01:20]} e6 {[%emt 0:00:23]} 2. d4 {[%emt 0:00:30]} d5 {[%emt 0:00:10]} 3. Nd2 {[%emt 0:00:30]} Nf6 {[%emt 0:00:15]} 4. e5 {[%emt 0:00:08]} Nfd7 {[%emt 0:00:18]} 5. c3 {[%emt 0:00:10]} c5 {[%emt 0:00:14]} 6. f4 {[%emt 0:00:23]} Nc6 {[%emt 0:00:27]} 7. Ndf3 {[%emt 0:00:07]} Qb6 {[%emt 0:00:52]} 8. h4 {[%emt 0:00:43]} cxd4 {[%emt 0:05:42]} 9. cxd4 {[%emt 0:00:10]} Bb4+ {[%emt 0:00:28]} 10. Kf2 {[%emt 0:00:43]} f6 {[%emt 0:01:34]} 11. Be3 {[%emt 0:01:49]} a5 {[%emt 0:08:18]} 12. a4 {[%emt 0:07:14]} O-O {[%emt 0:04:03]} 13. Bb5 {[%emt 0:06:29]} Ne7 $14 {[%emt 0:03:35]} 14. g4 {[%emt 0:03:07]} h5 {[%emt 0:08:27]} 15. gxh5 {[%emt 0:13:33]} Nf5 {[%emt 0:01:47]} 16. Qd3 {[%emt 0:01:53]} Be7 {[%emt 0:10:05]} 17. Kg2 {[%emt 0:02:40]} Nb8 {[%emt 0:01:44]} 18. Ne2 {[%emt 0:08:53]} Nc6 {[%emt 0:02:47]} 19. Bf2 {[%emt 0:02:38]} Bd7 {[%emt 0:06:07]} 20. Ng3 {[%emt 0:02:58]} fxe5 {[%emt 0:05:47]} 21. dxe5 {[%emt 0:03:44]} Bc5 {[%emt 0:01:40]} 22. Bxc5 {[%emt 0:10:42]} Qxc5 {[%emt 0:00:08]} 23. Nxf5 {[%emt 0:00:02]} Rxf5 {[%emt 0:00:19]} 24. Ng5 {[%emt 0:00:24]} Rc8 {[%emt 0:05:18]} 25. Rac1 {[%emt 0:05:20]} Qb4 {[%emt 0:01:03]} 26. Rhf1 {[%emt 0:00:06]} Rcf8 {[%emt 0:05:28]} 27. Kg3 {[%emt 0:03:09]} g6 {[%emt 0:08:39]} 28. Rf2 {[%emt 0:08:09]} gxh5 {[%emt 0:00:43]} 29. Bxc6 {[%emt 0:01:21]} bxc6 {[%emt 0:03:08]} 30. Qf3 {[%emt 0:01:04]} Rxf4 {[%emt 0:01:38]} 31. Qxh5 {[%emt 0:02:43]} Rg4+ {[%emt 0:02:45]} 32. Qxg4 {[%emt 0:00:18]} Qxg4+ {[%emt 0:00:04]} 33. Kxg4 {[%emt 0:00:02]} Rxf2 {[%emt 0:00:06]} 34. Rc5 {[%emt 0:00:42]} d4 {[%emt 0:01:27]} 35. Rxa5 {[%emt 0:01:54]} Be8 {[%emt 0:01:20]} 36. Ra8 {[%emt 0:00:27]} Kf8 {[%emt 0:00:30]} 37. Ne4 {[%emt 0:03:45]} Rf5 {[%emt 0:01:31]} 38. Nd6 {[%emt 0:00:25]} Rxe5 {[%emt 0:00:06]} 39. Rxe8+ {[%emt 0:00:03]} Kg7 {[%emt 0:00:06]} 40. Nc4 {[%emt 0:02:42]} Re2 {[%emt 0:00:35]} 41. Kf3 {[%emt 0:02:25]} Rc2 {[%emt 0:00:34]} 42. b3 {[%emt 0:00:10]} c5 {[%emt 0:00:40]} 43. Rxe6 {[%emt 0:00:42]} Rc3+ {[%emt 0:00:10]} 44. Ke4 {[%emt 0:00:33]} Rxb3 {[%emt 0:00:07]} 45. a5 {[%emt 0:00:37]} Rc3 {[%emt 0:01:01]} 46. Kd5 {[%emt 0:00:14]} d3 {[%emt 0:00:11]} 47. Kxc5 {[%emt 0:00:22]} 1-0

[Event "FIDE World School-ch O-15 2025"]
[Site "Vrnjacka Banja"]
[Date "2025.03.22"]
[Round "3.4"]
[White "Mane, Arnav"]
[Black "Harabor, David-Alexandru"]
[Result "1/2-1/2"]
[Annotator "NA RC"]
[ECO "B51"]
[WhiteElo "1748"]
[BlackElo "1989"]
[PlyCount "35"]
[EventDate "2025.03.19"]
[EventType "swiss"]
[EventCountry "SRB"]
[SourceTitle "playchess.com"]
[Source "ChessBase"]
[SourceQuality "1"]
[TimeControl "5400+30"]

1. e4 {[%emt 0:00:13]} c5 {[%emt 0:00:22]} 2. Nf3 {[%emt 0:00:07]} d6 {[%emt 0:00:34]} 3. Bb5+ {[%emt 0:00:06]} Nd7 {[%emt 0:00:14]} 4. O-O {[%emt 0:00:07]} Ngf6 {[%emt 0:01:00]} 5. Re1 {[%emt 0:00:08]} a6 {[%emt 0:00:33]} 6. Bf1 {[%emt 0:00:08]} e6 {[%emt 0:04:25]} 7. d4 {[%emt 0:00:15]} cxd4 {[%emt 0:00:35]} 8. Nxd4 {[%emt 0:00:12]} Ne5 {[%emt 0:17:21]} 9. c4 {[%emt 0:07:12]} Be7 {[%emt 0:02:07]} 10. Nc3 {[%emt 0:00:29]} Qc7 {[%emt 0:01:41]} 11. Qc2 $14 {[%emt 0:18:37]} Bd7 {[%emt 0:07:08]} 12. b3 {[%emt 0:02:48]} Rc8 {[%emt 0:04:57]} 13. Bb2 {[%emt 0:03:59]} O-O {[%emt 0:02:28]} 14. Rac1 {[%emt 0:05:31]} Rfd8 {[%emt 0:05:08]} 15. h3 {[%emt 0:12:02]} Qb8 {[%emt 0:09:26]} 16. Qe2 {[%emt 0:10:11]} Nc6 {[%emt 0:03:05]} 17. Nf3 {[%emt 0:02:01]} Ne5 {[%emt 0:00:47]} 18. Nd4 {[%emt 0:00:34]} 1/2-1/2

[Event "FIDE World School-ch O-15 2025"]
[Site "Vrnjacka Banja"]
[Date "2025.03.22"]
[Round "3.5"]
[White "Dandeniya, D D L N"]
[Black "Dascalescu, Adelin-Stefan"]
[Result "1-0"]
[Annotator "NA RC"]
[ECO "A80"]
[WhiteElo "1881"]
[BlackElo "2061"]
[PlyCount "87"]
[EventDate "2025.03.19"]
[EventType "swiss"]
[EventCountry "SRB"]
[SourceTitle "playchess.com"]
[Source "ChessBase"]
[SourceQuality "1"]
[TimeControl "5400+30"]

1. d4 {[%emt 0:00:04]} f5 {[%emt 0:01:36]} 2. Nc3 {[%emt 0:00:14]} Nf6 {[%emt 0:00:12]} 3. Bg5 {[%emt 0:00:08]} g6 {[%emt 0:01:39]} 4. e3 {[%emt 0:00:09]} d5 {[%emt 0:00:50]} 5. Nf3 {[%emt 0:00:19]} Bg7 {[%emt 0:00:12]} 6. h4 {[%emt 0:00:44] A80: Dutch Defence: Unusual White second moves.} h6 {[%emt 0:00:29]} 7. Bf4 {[%emt 0:00:29]} Be6 {[%emt 0:01:19]} 8. Ne5 {[%emt 0:01:26]} Bf7 {[%emt 0:00:20]} 9. Bd3 {[%emt 0:06:48]} Nh5 {[%emt 0:07:10]} 10. Bh2 {[%emt 0:01:19]} Bxe5 {[%emt 0:09:01]} 11. Bxe5 {[%emt 0:00:23]} Nf6 {[%emt 0:00:06]} 12. Bxf6 {[%emt 0:02:03]} exf6 {[%emt 0:00:03]} 13. h5 {[%emt 0:00:06]} gxh5 {[%emt 0:03:12]} 14. Bxf5 {[%emt 0:01:04]} Nc6 {[%emt 0:00:16]} 15. Qf3 {[%emt 0:00:44]} Ne7 {[%emt 0:01:50]} 16. Bh3 {[%emt 0:06:03]} Qd6 {[%emt 0:00:49]} 17. O-O-O {[%emt 0:00:50]} Bg6 {[%emt 0:00:19]} 18. e4 {[%emt 0:00:52]} Rf8 {[%emt 0:03:19]} 19. exd5 {[%emt 0:00:43]} f5 $18 {[%emt 0:00:27]} 20. Rhe1 {[%emt 0:01:25]} O-O-O {[%emt 0:07:54]} 21. Re6 {[%emt 0:00:05]} Qd7 {[%emt 0:00:20]} 22. Rde1 {[%emt 0:00:30]} Rde8 {[%emt 0:08:51]} 23. R1e5 {[%emt 0:00:39]} Kd8 {[%emt 0:01:34]} 24. g3 {[%emt 0:09:35]} Bf7 {[%emt 0:07:07]} 25. Rxh6 {[%emt 0:00:36]} Bg6 {[%emt 0:00:54]} 26. Qf4 {[%emt 0:02:08]} Rf6 {[%emt 0:08:36]} 27. Qg5 {[%emt 0:00:10]} Ref8 {[%emt 0:02:24]} 28. Ne2 {[%emt 0:01:48]} Kc8 {[%emt 0:05:53]} 29. Nf4 {[%emt 0:00:37]} Qd6 {[%emt 0:01:58]} 30. Nxg6 {[%emt 1:03:29]} Nxg6 {[%emt 0:07:05]} 31. Bxf5+ {[%emt 0:00:00]} Rxf5 {[%emt 0:01:19]} 32. Rxf5 {[%emt 0:00:00]} Rg8 {[%emt 0:00:56]} 33. Rf6 {[%emt 0:00:00]} Qe7 {[%emt 0:00:13]} 34. Qf5+ {[%emt 0:00:00]} Kb8 {[%emt 0:00:10]} 35. Qe6 {[%emt 0:00:00]} Qd8 {[%emt 0:01:46]} 36. Rhxg6 {[%emt 0:00:00]} Re8 {[%emt 0:00:03]} 37. Qf5 {[%emt 0:00:00]} a6 {[%emt 0:00:31]} 38. Re6 {[%emt 0:00:00]} Rf8 {[%emt 0:00:06]} 39. Rgf6 {[%emt 0:00:00]} Rh8 {[%emt 0:00:10]} 40. Qe5 {[%emt 0:00:00]} Ka7 {[%emt 0:00:29]} 41. d6 {[%emt 0:00:00]} c6 {[%emt 0:00:02]} 42. Qc5+ {[%emt 0:00:00]} Ka8 {[%emt 0:00:04]} 43. Re7 {[%emt 0:00:00]} h4 {[%emt 0:00:29]} 44. Rxb7 {[%emt 0:00:00]} 1-0

[Event "FIDE World School-ch O-15 2025"]
[Site "Vrnjacka Banja"]
[Date "2025.03.22"]
[Round "3.6"]
[White "Tulendinov, Dinmukhammed"]
[Black "Kim, Yejun"]
[Result "0-1"]
[Annotator "TA"]
[ECO "B23"]
[WhiteElo "2173"]
[BlackElo "1798"]
[PlyCount "64"]
[EventDate "2025.03.19"]
[EventType "swiss"]
[EventCountry "SRB"]
[SourceTitle "playchess.com"]
[Source "ChessBase"]
[SourceQuality "1"]
[TimeControl "5400+30"]

{[%evp 12,64,19,0,29,-22,-13,-8,0,-9,0,-3,-6,-8,0,0,8,0,0,-46,45,18,30,20,27,0,7,-25,-25,-18,-27,-24,-22,-110,-117,-109,-103,-110,-96,-124,-102,-110,-108,-107,-96,-99,-104,-132,-106,-689,-686,-672,-647,-675,-650]} 1. e4 {[%emt 0:01:58]} c5 {[%emt 0:00:05]} 2. g3 {[%emt 0:00:07]} Nc6 {[%emt 0:00:19]} 3. Bg2 {[%emt 0:00:07]} Nf6 {[%emt 0:00:10]} 4. Ne2 {[%emt 0:02:04]} d5 {[%emt 0:01:46]} 5. exd5 {[%emt 1:28:44]} Nxd5 {[%emt 0:00:07]} 6. Nbc3 {[%emt 0:00:00]} Nxc3 {[%emt 0:03:07]} 7. bxc3 {[%emt 0:00:00] 7.Nxc3 is vanishing.} e5 {[%emt 0:01:15] B23: Closed Sicilian: Lines without g3.} 8. c4 {[%emt 0:00:00]} ({White should try} 8. Rb1) 8... Be6 {[%emt 0:02:06]} 9. d3 {[%emt 0:00:00]} Be7 $146 {[%emt 0:00:33] The position is equal.} (9... Qd7 10. h3 Bd6 11. Be3 O-O 12. Rb1 f5 13. f4 b6 14. O-O Rae8 15. Kh2 Nd4 16. fxe5 Nxe2 17. Qxe2 Bxe5 {0-1 Vlaovic,D (2300)-Nickoloff,B (2380) CAN-op Winnipeg 1994 (9)}) 10. O-O {[%emt 0:00:00]} O-O {[%emt 0:00:06]} 11. Nc3 {[%emt 0:00:00]} Qd7 {[%emt 0:04:55]} 12. Bb2 {[%emt 0:00:00]} Bg4 {[%emt 0:07:05]} 13. Qd2 {[%emt 0:00:00]} Nd4 {[%emt 0:04:28]} 14. f3 {[%emt 0:00:00][%cal Bf2f3,Bf3f4][%mdl 32]} Be6 {[%emt 0:00:18][%cal Oe6c4]} 15. Rae1 {[%emt 0:00:00]} (15. Qf2 $11) 15... f5 {[%emt 0:22:47]} (15... Bxc4 $15 16. f4 f6) 16. f4 {[%emt 0:00:00]} (16. Rxe5 Bf6 17. Ree1 (17. Rxc5 Qe7 $17) 17... Bxc4 $15) (16. Nd5 $5) 16... e4 {[%emt 0:00:14][%cal Oe6c4]} 17. Kh1 {[%emt 0:00:00]} Rad8 {[%emt 0:06:32]} 18. Qf2 {[%emt 0:00:00]} Bf6 {[%emt 0:08:54]} 19. Rd1 {[%emt 0:00:00] [#]} e3 $1 {[%emt 0:03:26]} 20. Qxe3 {[%emt 0:00:00]} Nxc2 {[%emt 0:00:08]} 21. Qe2 {[%emt 0:00:00]} Nb4 {[%emt 0:00:24][%cal Of8e8]} 22. a3 {[%emt 0:00:00]} (22. Na4 $1 $11 b6 (22... Nxd3 $2 23. Nxc5 Nxc5 24. Rxd7 $18) 23. a3) 22... Nxd3 $17 {[%emt 0:00:06]} 23. Nd5 {[%emt 0:00:00] Bxf6 would now be deadly.} Bxb2 {[%emt 0:00:06]} (23... Nxb2 $2 {perishes.} 24. Nxf6+ Rxf6 25. Rxd7 Rxd7 26. Bd5 (26. Qxb2 Bxc4 27. Qe5 Rd8 $18) 26... Rxd5 27. cxd5 Bxd5+ 28. Kg1 $18) 24. Rxd3 {[%emt 0:00:00]} Bd4 $36 {[%emt 0:00:05][%mdl 2048] Keeping White busy.} 25. Rb1 {[%emt 0:00:00]} b6 {[%emt 0:00:33]} 26. a4 {[%emt 0:00:00][%cal Oa4a5]} Rfe8 {[%emt 0:00:13][%cal Re6d5] and ...Bxd5! should not be overlooked} 27. Qa2 {[%emt 0:00:00]} Bf7 {[%emt 0:00:34] This pair of bishops is nice.} 28. Bf3 {[%emt 0:02:53] [#] Prevents Bh5.} Re4 $1 {[%emt 0:01:39]} 29. Rbd1 {[%emt 0:04:13]} (29. Bxe4 fxe4) 29... Qe6 {[%emt 0:01:23]} 30. Bxe4 $4 {[%emt 0:00:49][%mdl 8192]} (30. h4 $17) 30... Qxe4+ $19 {[%emt 0:00:04] Black is clearly winning.} ({Less strong is} 30... fxe4 31. Rxd4 cxd4 32. Rxd4 $17) 31. Qg2 {[%emt 0:00:05] [#]} Rxd5 $1 {[%emt 0:00:04]} 32. cxd5 {[%emt 0:03:50]} Bxd5 {[%emt 0:00:06] Weighted Error Value: White=0.40/Black=0.11 (very precise)   Loses game:     	White=1     	---        Mistake:       	White=3     	Black=1      Inaccurate:     	White=2     	---        OK:         	White=9     	Black=8      Best:        	White=1     	Black=2} 0-1

[Event "FIDE World School-ch O-15 2025"]
[Site "Vrnjacka Banja"]
[Date "2025.03.22"]
[Round "3.7"]
[White "Cirkovic, Vuk"]
[Black "Panic, Viktor"]
[Result "1/2-1/2"]
[Annotator "NA RC"]
[ECO "B26"]
[WhiteElo "1981"]
[BlackElo "1945"]
[PlyCount "38"]
[EventDate "2025.03.19"]
[EventType "swiss"]
[EventCountry "SRB"]
[SourceTitle "playchess.com"]
[Source "ChessBase"]
[SourceQuality "1"]
[TimeControl "5400+30"]

1. e4 {[%emt 0:00:32]} c5 {[%emt 0:00:25]} 2. Nc3 {[%emt 0:00:29]} Nc6 {[%emt 0:00:07]} 3. g3 {[%emt 0:00:38]} g6 {[%emt 0:00:07]} 4. Bg2 {[%emt 0:00:57]} Bg7 {[%emt 0:00:09]} 5. d3 {[%emt 0:00:49]} e6 {[%emt 0:00:07]} 6. Be3 {[%emt 0:01:47]} d6 {[%emt 0:00:08]} 7. Nge2 {[%emt 0:01:07]} Rb8 {[%emt 0:00:19]} 8. O-O {[%emt 0:01:49]} Nge7 {[%emt 0:01:11]} 9. d4 {[%emt 0:09:38]} cxd4 {[%emt 0:00:40]} 10. Nxd4 {[%emt 0:00:34]} a6 {[%emt 0:03:36]} 11. f4 {[%emt 0:06:22]} O-O {[%emt 0:03:17]} 12. a4 $11 {[%emt 0:16:03]} Qc7 {[%emt 0:07:03]} 13. Nb3 {[%emt 0:02:21]} b6 {[%emt 0:04:38]} 14. Qd2 {[%emt 0:05:31]} Rd8 {[%emt 0:04:15]} 15. Nd1 {[%emt 0:09:26]} Bb7 {[%emt 0:11:40]} 16. c3 {[%emt 0:02:27]} a5 {[%emt 0:16:16]} 17. Nd4 {[%emt 0:07:18]} Ba6 {[%emt 0:07:37]} 18. Re1 {[%emt 0:05:18]} d5 {[%emt 0:00:54]} 19. e5 {[%emt 0:01:58]} Nxd4 {[%emt 0:00:50]} 1/2-1/2

[Event "FIDE World School-ch O-15 2025"]
[Site "Vrnjacka Banja"]
[Date "2025.03.22"]
[Round "3.8"]
[White "Hettigoda, Dhanodya Budmina"]
[Black "Kutanjac, Aleksandar"]
[Result "1/2-1/2"]
[Annotator "NA RC"]
[ECO "C10"]
[WhiteElo "1837"]
[BlackElo "2103"]
[PlyCount "52"]
[EventDate "2025.03.19"]
[EventType "swiss"]
[EventCountry "SRB"]
[SourceTitle "playchess.com"]
[Source "ChessBase"]
[SourceQuality "1"]
[TimeControl "5400+30"]

1. e4 {[%emt 0:00:01]} e6 {[%emt 0:00:06]} 2. d4 {[%emt 0:00:03]} d5 {[%emt 0:00:04]} 3. Nc3 {[%emt 0:00:03]} dxe4 {[%emt 0:00:05]} 4. Nxe4 {[%emt 0:00:04]} Nd7 {[%emt 0:00:04]} 5. Nf3 {[%emt 0:00:04]} Ngf6 {[%emt 0:00:06]} 6. Nxf6+ {[%emt 0:00:04]} Nxf6 {[%emt 0:00:06]} 7. c3 {[%emt 0:00:04]} Be7 {[%emt 0:00:22]} 8. Bb5+ {[%emt 0:04:28]} Bd7 {[%emt 0:00:36]} 9. Qe2 {[%emt 0:01:27]} O-O {[%emt 0:01:00]} 10. O-O {[%emt 0:01:24]} Bxb5 {[%emt 0:01:35]} 11. Qxb5 {[%emt 0:00:02]} Qd5 {[%emt 0:00:12]} 12. Qe2 {[%emt 0:05:31]} Rfd8 {[%emt 0:00:56]} 13. Bf4 {[%emt 0:05:30]} Rac8 {[%emt 0:00:46]} 14. Ne5 {[%emt 0:06:53]} c5 $11 {[%emt 0:10:47]} 15. Rfd1 {[%emt 0:08:07]} Qe4 {[%emt 0:04:49]} 16. Qxe4 {[%emt 0:04:44]} Nxe4 {[%emt 0:00:07]} 17. Be3 {[%emt 0:09:45]} f6 {[%emt 0:21:16]} 18. Nd3 {[%emt 0:03:19]} cxd4 {[%emt 0:04:26]} 19. Bxd4 {[%emt 0:00:28]} b6 {[%emt 0:00:31]} 20. Re1 {[%emt 0:03:50]} Nc5 {[%emt 0:00:52]} 21. Bxc5 {[%emt 0:05:36]} Bxc5 {[%emt 0:02:56]} 22. Nxc5 {[%emt 0:03:57]} Rxc5 {[%emt 0:00:06]} 23. Rxe6 {[%emt 0:04:06]} Rd2 {[%emt 0:00:35]} 24. Re8+ {[%emt 0:06:45]} Kf7 {[%emt 0:00:20]} 25. Rae1 {[%emt 0:01:22]} Rxb2 {[%emt 0:00:51]} 26. R8e7+ {[%emt 0:01:32]} Kg6 {[%emt 0:00:12]} 1/2-1/2